[Event "Titled Tuesday Blitz June 21 Early 2022"]
[White "Costachi, Mihnea"]
[Black "Pinheiro, Iung Alicio de O."]
[WhiteFideId "1217518"]
[BlackFideId "2104350"]
[WhiteElo "2476"]
[BlackElo "2283"]
[Result "0-1"]
[Round "10"]
[TimeControl "180+1"]
[Date "2022.06.21"]
[WhiteClock "0:01:13"]
[BlackClock "0:00:35"]

1. e4 {[%clk 0:03:00]}  c5 {[%clk 0:02:59]} 2. Nf3 {[%clk 0:03:00]}  Nc6 {[%clk 0:02:59]} 3. d4 {[%clk 0:03:00]}  cxd4 {[%clk 0:02:55]} 4. Nxd4 {[%clk 0:03:01]}  e5 {[%clk 0:02:55]} 5. Nb5 {[%clk 0:03:01]}  d6 {[%clk 0:02:55]} 6. N1c3 {[%clk 0:03:01]}  a6 {[%clk 0:02:56]} 7. Na3 {[%clk 0:03:02]}  b5 {[%clk 0:02:55]} 8. Nd5 {[%clk 0:03:02]}  Nge7 {[%clk 0:02:56]} 9. c3 {[%clk 0:03:02]}  Nxd5 {[%clk 0:02:55]} 10. exd5 {[%clk 0:03:02]}  Ne7 {[%clk 0:02:55]} 11. Nc2 {[%clk 0:03:02]}  Bd7 {[%clk 0:02:56]} 12. Be2 {[%clk 0:03:02]}  g6 {[%clk 0:02:55]} 13. h4 {[%clk 0:03:00]}  h6 {[%clk 0:02:43]} 14. Be3 {[%clk 0:02:57]}  Nf5 {[%clk 0:02:39]} 15. h5 {[%clk 0:02:53]}  Bg7 {[%clk 0:02:26]} 16. Qd3 {[%clk 0:02:50]}  g5 {[%clk 0:01:12]} 17. Bg4 {[%clk 0:02:48]}  Qc8 {[%clk 0:01:11]} 18. Bf3 {[%clk 0:02:40]}  Nh4 {[%clk 0:01:07]} 19. Bb6 {[%clk 0:02:24]}  f5 {[%clk 0:01:05]} 20. O-O-O {[%clk 0:02:19]}  O-O {[%clk 0:01:02]} 21. Rhe1 {[%clk 0:02:03]}  e4 {[%clk 0:01:02]} 22. Bxe4 {[%clk 0:02:03]}  fxe4 {[%clk 0:01:02]} 23. Qxe4 {[%clk 0:02:04]}  Bf5 {[%clk 0:01:02]} 24. Qe7 {[%clk 0:02:04]}  Qd7 {[%clk 0:00:59]} 25. g3 {[%clk 0:01:56]}  Nf3 {[%clk 0:00:57]} 26. Qxd7 {[%clk 0:01:57]}  Bxd7 {[%clk 0:00:57]} 27. Re7 {[%clk 0:01:55]}  Rf7 {[%clk 0:00:57]} 28. Rxf7 {[%clk 0:01:51]}  Kxf7 {[%clk 0:00:57]} 29. Ne3 {[%clk 0:01:50]}  Rc8 {[%clk 0:00:57]} 30. a3 {[%clk 0:01:48]}  Ne5 {[%clk 0:00:56]} 31. Bd4 {[%clk 0:01:40]}  Nc4 {[%clk 0:00:56]} 32. Nxc4 {[%clk 0:01:39]}  Rxc4 {[%clk 0:00:56]} 33. Bxg7 {[%clk 0:01:39]}  Kxg7 {[%clk 0:00:57]} 34. Re1 {[%clk 0:01:40]}  Kf7 {[%clk 0:00:57]} 35. Kc2 {[%clk 0:01:38]}  Bg4 {[%clk 0:00:56]} 36. Kd3 {[%clk 0:01:33]}  Rc5 {[%clk 0:00:54]} 37. Kd4 {[%clk 0:01:33]}  Bf3 {[%clk 0:00:54]} 38. Ke3 {[%clk 0:01:31]}  Bxd5 {[%clk 0:00:54]} 39. Rd1 {[%clk 0:01:31]}  Ke6 {[%clk 0:00:53]} 40. Kd4 {[%clk 0:01:29]}  Bb3 {[%clk 0:00:52]} 41. Re1+ {[%clk 0:01:26]}  Re5 {[%clk 0:00:52]} 42. Rf1 {[%clk 0:01:27]}  Bc2 {[%clk 0:00:48]} 43. f3 {[%clk 0:01:24]}  g4 {[%clk 0:00:47]} 44. c4 {[%clk 0:01:23]}  gxf3 {[%clk 0:00:45]} 45. cxb5 {[%clk 0:01:24]}  axb5 {[%clk 0:00:41]} 46. Rxf3 {[%clk 0:01:23]}  Bd1 {[%clk 0:00:40]} 47. Rf8 {[%clk 0:01:21]}  Bxh5 {[%clk 0:00:40]} 48. Rh8 {[%clk 0:01:21]}  Rd5+ {[%clk 0:00:37]} 49. Kc3 {[%clk 0:01:18]}  Rg5 {[%clk 0:00:38]} 50. Rxh6+ {[%clk 0:01:18]}  Bg6 {[%clk 0:00:38]} 51. Kb4 {[%clk 0:01:15]}  Kd7 {[%clk 0:00:37]} 52. Ka5 {[%clk 0:01:13]}  Kc6 {[%clk 0:00:37]} 53. b4 {[%clk 0:01:13]}  Rxg3 {[%clk 0:00:37]} 54. Rh3 {[%clk 0:01:13]}  Rxh3 {[%clk 0:00:35]} 0-1


[Site "https://www.chess.com"]

[Event "Titled Tuesday Blitz June 21 Early 2022"]
[White "Curtis, John"]
[Black "Carrasco Miranda, Andres"]
[WhiteFideId "3200256"]
[BlackFideId "3405990"]
[WhiteElo "2203"]
[BlackElo "2177"]
[Result "0-1"]
[Round "10"]
[TimeControl "180+1"]
[Date "2022.06.22"]
[WhiteClock "0:00:19"]
[BlackClock "0:00:21"]

1. d4 {[%clk 0:02:36]}  Nf6 {[%clk 0:02:58]} 2. Nf3 {[%clk 0:02:36]}  g6 {[%clk 0:02:57]} 3. g3 {[%clk 0:02:35]}  Bg7 {[%clk 0:02:56]} 4. Bg2 {[%clk 0:02:36]}  O-O {[%clk 0:02:56]} 5. O-O {[%clk 0:02:37]}  d5 {[%clk 0:02:56]} 6. c4 {[%clk 0:02:37]}  c6 {[%clk 0:02:57]} 7. Qc2 {[%clk 0:02:35]}  Bf5 {[%clk 0:02:55]} 8. Qb3 {[%clk 0:02:35]}  Qb6 {[%clk 0:02:55]} 9. Qxb6 {[%clk 0:02:35]}  axb6 {[%clk 0:02:56]} 10. cxd5 {[%clk 0:02:35]}  Nxd5 {[%clk 0:02:54]} 11. Nc3 {[%clk 0:02:30]}  Nb4 {[%clk 0:02:53]} 12. e4 {[%clk 0:02:00]}  Bg4 {[%clk 0:02:50]} 13. Be3 {[%clk 0:01:57]}  Nc2 {[%clk 0:02:48]} 14. Rad1 {[%clk 0:01:55]}  Nxe3 {[%clk 0:02:46]} 15. fxe3 {[%clk 0:01:55]}  b5 {[%clk 0:02:45]} 16. a3 {[%clk 0:01:55]}  Nd7 {[%clk 0:02:45]} 17. h3 {[%clk 0:01:52]}  Bxf3 {[%clk 0:02:42]} 18. Bxf3 {[%clk 0:01:52]}  Nb6 {[%clk 0:02:42]} 19. Rd3 {[%clk 0:01:43]}  Nc4 {[%clk 0:02:38]} 20. Nd1 {[%clk 0:01:43]}  Rfd8 {[%clk 0:02:33]} 21. e5 {[%clk 0:01:43]}  Nxe5 {[%clk 0:02:31]} 22. Rb3 {[%clk 0:01:38]}  Nc4 {[%clk 0:02:28]} 23. Rf2 {[%clk 0:01:34]}  e5 {[%clk 0:02:24]} 24. d5 {[%clk 0:01:31]}  cxd5 {[%clk 0:01:57]} 25. Rxb5 {[%clk 0:01:30]}  e4 {[%clk 0:01:40]} 26. Be2 {[%clk 0:01:30]}  Bh6 {[%clk 0:01:36]} 27. Bxc4 {[%clk 0:01:20]}  dxc4 {[%clk 0:01:37]} 28. Rf1 {[%clk 0:01:20]}  b6 {[%clk 0:01:35]} 29. Re1 {[%clk 0:01:17]}  Rd3 {[%clk 0:01:31]} 30. Rb4 {[%clk 0:01:11]}  Rad8 {[%clk 0:01:25]} 31. Nf2 {[%clk 0:01:11]}  Bxe3 {[%clk 0:01:20]} 32. Rxc4 {[%clk 0:01:09]}  Rd1 {[%clk 0:01:20]} 33. Kf1 {[%clk 0:01:07]}  Rxe1+ {[%clk 0:01:13]} 34. Kxe1 {[%clk 0:01:07]}  Bxf2+ {[%clk 0:01:12]} 35. Kxf2 {[%clk 0:01:07]}  f5 {[%clk 0:01:08]} 36. Rb4 {[%clk 0:01:04]}  Rd6 {[%clk 0:01:05]} 37. g4 {[%clk 0:01:00]}  Kf7 {[%clk 0:01:04]} 38. g5 {[%clk 0:00:50]}  Ke6 {[%clk 0:01:03]} 39. Rb5 {[%clk 0:00:51]}  Rd2+ {[%clk 0:00:54]} 40. Ke3 {[%clk 0:00:50]}  Rd3+ {[%clk 0:00:54]} 41. Ke2 {[%clk 0:00:51]}  Rxh3 {[%clk 0:00:54]} 42. Rxb6+ {[%clk 0:00:51]}  Ke5 {[%clk 0:00:54]} 43. a4 {[%clk 0:00:51]}  Kf4 {[%clk 0:00:51]} 44. a5 {[%clk 0:00:51]}  Rh2+ {[%clk 0:00:51]} 45. Kd1 {[%clk 0:00:51]}  Rh1+ {[%clk 0:00:41]} 46. Kc2 {[%clk 0:00:49]}  Ra1 {[%clk 0:00:41]} 47. b4 {[%clk 0:00:47]}  Ke3 {[%clk 0:00:42]} 48. Rb7 {[%clk 0:00:41]}  f4 {[%clk 0:00:42]} 49. Rxh7 {[%clk 0:00:40]}  f3 {[%clk 0:00:42]} 50. Rf7 {[%clk 0:00:38]}  Ke2 {[%clk 0:00:42]} 51. Kc3 {[%clk 0:00:34]}  e3 {[%clk 0:00:42]} 52. Kb2 {[%clk 0:00:33]}  Rd1 {[%clk 0:00:38]} 53. a6 {[%clk 0:00:32]}  f2 {[%clk 0:00:37]} 54. b5 {[%clk 0:00:32]}  f1=Q {[%clk 0:00:36]} 55. Rxf1 {[%clk 0:00:31]}  Kxf1 {[%clk 0:00:37]} 56. a7 {[%clk 0:00:31]}  Rd8 {[%clk 0:00:36]} 57. b6 {[%clk 0:00:31]}  e2 {[%clk 0:00:37]} 58. b7 {[%clk 0:00:32]}  e1=Q {[%clk 0:00:37]} 59. b8=Q {[%clk 0:00:32]}  Rd2+ {[%clk 0:00:25]} 60. Kb3 {[%clk 0:00:32]}  Qe3+ {[%clk 0:00:25]} 61. Kc4 {[%clk 0:00:27]}  Qd3+ {[%clk 0:00:24]} 62. Kc5 {[%clk 0:00:25]}  Rc2+ {[%clk 0:00:24]} 63. Kb6 {[%clk 0:00:20]}  Qb3+ {[%clk 0:00:22]} 64. Ka6 {[%clk 0:00:19]}  Ra2# {[%clk 0:00:21]} 0-1


[Site "https://www.chess.com"]

[Event "Titled Tuesday Blitz June 21 Early 2022"]
[White "Daeschler, Florian"]
[Black "Przybylski, Wojciech"]
[WhiteFideId "20678193"]
[BlackFideId "1117599"]
[WhiteElo "2221"]
[BlackElo "2133"]
[Result "1-0"]
[Round "10"]
[TimeControl "180+1"]
[Date "2022.06.22"]
[WhiteClock "0:00:09"]
[BlackClock "0:00:01"]

1. e4 {[%clk 0:03:00]}  e5 {[%clk 0:02:56]} 2. Nf3 {[%clk 0:03:00]}  Nc6 {[%clk 0:02:56]} 3. Bc4 {[%clk 0:03:01]}  Nf6 {[%clk 0:02:55]} 4. d3 {[%clk 0:03:01]}  Be7 {[%clk 0:02:55]} 5. O-O {[%clk 0:03:01]}  O-O {[%clk 0:02:55]} 6. Re1 {[%clk 0:03:01]}  h6 {[%clk 0:02:55]} 7. Nc3 {[%clk 0:02:53]}  a6 {[%clk 0:02:54]} 8. a4 {[%clk 0:02:51]}  d6 {[%clk 0:02:54]} 9. h3 {[%clk 0:02:47]}  Be6 {[%clk 0:02:54]} 10. Nd5 {[%clk 0:02:45]}  Nb8 {[%clk 0:02:47]} 11. c3 {[%clk 0:02:42]}  c6 {[%clk 0:02:40]} 12. Nxf6+ {[%clk 0:02:40]}  Bxf6 {[%clk 0:02:26]} 13. Bxe6 {[%clk 0:02:40]}  fxe6 {[%clk 0:02:24]} 14. d4 {[%clk 0:02:41]}  exd4 {[%clk 0:02:09]} 15. cxd4 {[%clk 0:02:42]}  Be7 {[%clk 0:02:06]} 16. Be3 {[%clk 0:02:35]}  Nd7 {[%clk 0:01:50]} 17. Qb3 {[%clk 0:02:35]}  d5 {[%clk 0:01:50]} 18. exd5 {[%clk 0:02:30]}  exd5 {[%clk 0:01:47]} 19. Qxb7 {[%clk 0:02:30]}  Bd6 {[%clk 0:01:29]} 20. Qxc6 {[%clk 0:02:26]}  Nf6 {[%clk 0:01:28]} 21. Qc2 {[%clk 0:02:22]}  Ne4 {[%clk 0:01:22]} 22. Ne5 {[%clk 0:02:19]}  Rc8 {[%clk 0:01:17]} 23. Qd3 {[%clk 0:02:16]}  a5 {[%clk 0:00:57]} 24. Rac1 {[%clk 0:02:15]}  Qe8 {[%clk 0:00:43]} 25. Rxc8 {[%clk 0:01:55]}  Qxc8 {[%clk 0:00:43]} 26. Rc1 {[%clk 0:01:52]}  Qe8 {[%clk 0:00:36]} 27. Qb5 {[%clk 0:01:38]}  Bxe5 {[%clk 0:00:19]} 28. Qxd5+ {[%clk 0:01:32]}  Kh8 {[%clk 0:00:19]} 29. Qxe5 {[%clk 0:01:32]}  Nf6 {[%clk 0:00:15]} 30. Qxe8 {[%clk 0:01:31]}  Rxe8 {[%clk 0:00:16]} 31. Rc5 {[%clk 0:01:23]}  Rb8 {[%clk 0:00:16]} 32. Rb5 {[%clk 0:01:15]}  Ra8 {[%clk 0:00:16]} 33. Kf1 {[%clk 0:01:12]}  Kg8 {[%clk 0:00:15]} 34. Ke2 {[%clk 0:01:11]}  Kf7 {[%clk 0:00:16]} 35. Kd3 {[%clk 0:01:11]}  Ke6 {[%clk 0:00:16]} 36. Bd2 {[%clk 0:01:10]}  Nd5 {[%clk 0:00:09]} 37. g3 {[%clk 0:01:03]}  g5 {[%clk 0:00:06]} 38. Rxa5 {[%clk 0:01:02]}  Rf8 {[%clk 0:00:06]} 39. Ra6+ {[%clk 0:01:02]}  Kd7 {[%clk 0:00:06]} 40. Ra7+ {[%clk 0:00:57]}  Kc6 {[%clk 0:00:05]} 41. Be3 {[%clk 0:00:56]}  Nc7 {[%clk 0:00:05]} 42. b4 {[%clk 0:00:51]}  Nd5 {[%clk 0:00:05]} 43. b5+ {[%clk 0:00:48]}  Kb6 {[%clk 0:00:04]} 44. Ra6+ {[%clk 0:00:48]}  Kb7 {[%clk 0:00:05]} 45. Rxh6 {[%clk 0:00:47]}  Ra8 {[%clk 0:00:05]} 46. Ra6 {[%clk 0:00:32]}  Nb4+ {[%clk 0:00:04]} 47. Ke4 {[%clk 0:00:32]}  Nxa6 {[%clk 0:00:04]} 48. bxa6+ {[%clk 0:00:32]}  Rxa6 {[%clk 0:00:04]} 49. Bxg5 {[%clk 0:00:32]}  Rxa4 {[%clk 0:00:04]} 50. h4 {[%clk 0:00:31]}  Kc6 {[%clk 0:00:04]} 51. h5 {[%clk 0:00:30]}  Kd6 {[%clk 0:00:03]} 52. h6 {[%clk 0:00:30]}  Ra7 {[%clk 0:00:03]} 53. Bf4+ {[%clk 0:00:28]}  Ke6 {[%clk 0:00:03]} 54. g4 {[%clk 0:00:27]}  Kf6 {[%clk 0:00:03]} 55. g5+ {[%clk 0:00:25]}  Kg6 {[%clk 0:00:03]} 56. Be3 {[%clk 0:00:24]}  Re7+ {[%clk 0:00:03]} 57. Kd5 {[%clk 0:00:22]}  Rd7+ {[%clk 0:00:03]} 58. Kc6 {[%clk 0:00:22]}  Rd8 {[%clk 0:00:03]} 59. d5 {[%clk 0:00:23]}  Kf5 {[%clk 0:00:03]} 60. d6 {[%clk 0:00:20]}  Ke6 {[%clk 0:00:03]} 61. Bc5 {[%clk 0:00:17]}  Rc8+ {[%clk 0:00:03]} 62. Kb6 {[%clk 0:00:17]}  Rb8+ {[%clk 0:00:03]} 63. Kc7 {[%clk 0:00:18]}  Rh8 {[%clk 0:00:03]} 64. g6 {[%clk 0:00:12]}  Rxh6 {[%clk 0:00:03]} 65. g7 {[%clk 0:00:11]}  Rh7 {[%clk 0:00:03]} 66. Bd4 {[%clk 0:00:11]}  Rh1 {[%clk 0:00:02]} 67. d7 {[%clk 0:00:10]}  Rc1+ {[%clk 0:00:01]} 68. Kd8 {[%clk 0:00:11]}  Rg1 {[%clk 0:00:01]} 69. Ke8 {[%clk 0:00:09]} 1-0


[Site "https://www.chess.com"]

[Event "Titled Tuesday Blitz June 21 Early 2022"]
[White "Dubov, Daniil"]
[Black "Zierk, Steven"]
[WhiteFideId "24126055"]
[BlackFideId "2034255"]
[WhiteElo "2791"]
[BlackElo "2494"]
[Result "1-0"]
[Round "10"]
[TimeControl "180+1"]
[Date "2022.06.21"]
[WhiteClock "0:00:59"]
[BlackClock "0:01:48"]

1. d4 {[%clk 0:03:00]}  d5 {[%clk 0:02:59]} 2. c4 {[%clk 0:03:00]}  dxc4 {[%clk 0:02:58]} 3. e4 {[%clk 0:02:57]}  Nf6 {[%clk 0:02:58]} 4. e5 {[%clk 0:02:56]}  Nd5 {[%clk 0:02:58]} 5. Bxc4 {[%clk 0:02:57]}  Nc6 {[%clk 0:02:58]} 6. Ne2 {[%clk 0:02:53]}  Bf5 {[%clk 0:02:56]} 7. Nbc3 {[%clk 0:02:49]}  Nb6 {[%clk 0:02:52]} 8. Bb5 {[%clk 0:02:43]}  e6 {[%clk 0:02:51]} 9. O-O {[%clk 0:02:40]}  a6 {[%clk 0:02:50]} 10. Bxc6+ {[%clk 0:02:39]}  bxc6 {[%clk 0:02:51]} 11. Ng3 {[%clk 0:02:38]}  Bg6 {[%clk 0:02:50]} 12. f4 {[%clk 0:02:34]}  c5 {[%clk 0:02:45]} 13. d5 {[%clk 0:02:33]}  Be7 {[%clk 0:02:34]} 14. f5 {[%clk 0:02:19]}  Bxf5 {[%clk 0:02:27]} 15. Nxf5 {[%clk 0:02:20]}  exf5 {[%clk 0:02:27]} 16. Rxf5 {[%clk 0:02:20]}  O-O {[%clk 0:02:27]} 17. Qf3 {[%clk 0:02:16]}  c4 {[%clk 0:02:23]} 18. Be3 {[%clk 0:02:12]}  Bb4 {[%clk 0:02:20]} 19. Rd1 {[%clk 0:01:48]}  Qd7 {[%clk 0:02:12]} 20. Ne4 {[%clk 0:01:43]}  Rad8 {[%clk 0:01:59]} 21. Nf6+ {[%clk 0:01:02]}  gxf6 {[%clk 0:01:57]} 22. Bh6 {[%clk 0:01:01]}  Kh8 {[%clk 0:01:48]} 23. Rg5 {[%clk 0:00:59]} 1-0


[Site "https://www.chess.com"]

[Event "Titled Tuesday Blitz June 21 Early 2022"]
[White "Durarbayli, Vasif"]
[Black "Andreikin, Dmitry"]
[WhiteFideId "13402935"]
[BlackFideId "4158814"]
[WhiteElo "2528"]
[BlackElo "2736"]
[Result "0-1"]
[Round "10"]
[TimeControl "180+1"]
[Date "2022.06.21"]
[WhiteClock "0:00:02"]
[BlackClock "0:00:59"]

1. e4 {[%clk 0:03:00]}  c5 {[%clk 0:03:00]} 2. Nf3 {[%clk 0:03:01]}  e6 {[%clk 0:03:01]} 3. d4 {[%clk 0:03:01]}  cxd4 {[%clk 0:03:01]} 4. Nxd4 {[%clk 0:03:01]}  Nc6 {[%clk 0:03:02]} 5. Bf4 {[%clk 0:03:00]}  d6 {[%clk 0:02:59]} 6. Nxc6 {[%clk 0:03:00]}  bxc6 {[%clk 0:02:59]} 7. Bd3 {[%clk 0:03:00]}  Rb8 {[%clk 0:02:57]} 8. Nd2 {[%clk 0:02:42]}  Rxb2 {[%clk 0:02:53]} 9. Nb3 {[%clk 0:02:40]}  d5 {[%clk 0:02:50]} 10. O-O {[%clk 0:02:32]}  Nf6 {[%clk 0:02:48]} 11. exd5 {[%clk 0:02:21]}  cxd5 {[%clk 0:02:35]} 12. Be5 {[%clk 0:02:21]}  Ba3 {[%clk 0:02:35]} 13. Bb5+ {[%clk 0:01:53]}  Bd7 {[%clk 0:02:31]} 14. Bxd7+ {[%clk 0:01:48]}  Qxd7 {[%clk 0:02:32]} 15. Bxb2 {[%clk 0:01:43]}  Bxb2 {[%clk 0:02:33]} 16. Rb1 {[%clk 0:01:44]}  Be5 {[%clk 0:02:27]} 17. Nc5 {[%clk 0:01:24]}  Qc7 {[%clk 0:02:15]} 18. Na6 {[%clk 0:01:24]}  Qc8 {[%clk 0:01:59]} 19. Qe2 {[%clk 0:01:23]}  Nd7 {[%clk 0:01:51]} 20. Nb4 {[%clk 0:00:20]}  O-O {[%clk 0:01:51]} 21. Nd3 {[%clk 0:00:20]}  Bd6 {[%clk 0:01:49]} 22. h3 {[%clk 0:00:20]}  Qa6 {[%clk 0:01:43]} 23. Qd2 {[%clk 0:00:12]}  Rc8 {[%clk 0:01:39]} 24. Rfc1 {[%clk 0:00:12]}  Nb6 {[%clk 0:01:34]} 25. c3 {[%clk 0:00:10]}  h6 {[%clk 0:01:32]} 26. Nb4 {[%clk 0:00:10]}  Qc4 {[%clk 0:01:31]} 27. Qd3 {[%clk 0:00:05]}  Qf4 {[%clk 0:01:31]} 28. g3 {[%clk 0:00:04]}  Qg5 {[%clk 0:01:31]} 29. h4 {[%clk 0:00:02]}  Qg4 {[%clk 0:01:31]} 30. Kg2 {[%clk 0:00:03]}  Nc4 {[%clk 0:01:29]} 31. Nc2 {[%clk 0:00:02]}  Ne5 {[%clk 0:01:28]} 32. Qe3 {[%clk 0:00:03]}  Nc4 {[%clk 0:01:22]} 33. Qd3 {[%clk 0:00:03]}  Bc5 {[%clk 0:01:07]} 34. Qf3 {[%clk 0:00:03]}  Qxf3+ {[%clk 0:01:06]} 35. Kxf3 {[%clk 0:00:04]}  Nd2+ {[%clk 0:01:06]} 36. Ke2 {[%clk 0:00:04]}  Nxb1 {[%clk 0:01:06]} 37. Rxb1 {[%clk 0:00:05]}  Bb6 {[%clk 0:01:06]} 38. Rb3 {[%clk 0:00:05]}  Rc4 {[%clk 0:01:06]} 39. Nb4 {[%clk 0:00:05]}  Kf8 {[%clk 0:01:01]} 40. Nd3 {[%clk 0:00:03]}  Ke7 {[%clk 0:01:01]} 41. Nb4 {[%clk 0:00:03]}  Kd6 {[%clk 0:01:01]} 42. Nd3 {[%clk 0:00:04]}  Ra4 {[%clk 0:01:00]} 43. Rb2 {[%clk 0:00:02]}  Ra3 {[%clk 0:00:59]} 44. Rc2 {[%clk 0:00:02]}  Ba5 {[%clk 0:00:59]} 0-1


[Site "https://www.chess.com"]

[Event "Titled Tuesday Blitz June 21 Early 2022"]
[White "Fedoseev, Vladimir"]
[Black "Navara, David"]
[WhiteFideId "24130737"]
[BlackFideId "309095"]
[WhiteElo "2726"]
[BlackElo "2686"]
[Result "1-0"]
[Round "10"]
[TimeControl "180+1"]
[Date "2022.06.21"]
[WhiteClock "0:00:07"]
[BlackClock "0:00:02"]

1. e4 {[%clk 0:02:59]}  e5 {[%clk 0:03:00]} 2. Nf3 {[%clk 0:02:59]}  Nc6 {[%clk 0:03:00]} 3. Bb5 {[%clk 0:02:59]}  Nf6 {[%clk 0:03:00]} 4. d3 {[%clk 0:02:59]}  Bc5 {[%clk 0:03:01]} 5. c3 {[%clk 0:02:56]}  O-O {[%clk 0:02:54]} 6. O-O {[%clk 0:02:55]}  d6 {[%clk 0:02:54]} 7. Nbd2 {[%clk 0:02:54]}  a6 {[%clk 0:02:53]} 8. Bxc6 {[%clk 0:02:52]}  bxc6 {[%clk 0:02:54]} 9. h3 {[%clk 0:02:48]}  a5 {[%clk 0:02:50]} 10. Re1 {[%clk 0:02:47]}  h6 {[%clk 0:02:43]} 11. Qc2 {[%clk 0:02:45]}  Bb6 {[%clk 0:02:34]} 12. Nc4 {[%clk 0:02:40]}  c5 {[%clk 0:02:19]} 13. Be3 {[%clk 0:02:35]}  a4 {[%clk 0:02:19]} 14. Nfd2 {[%clk 0:02:17]}  Nh5 {[%clk 0:02:16]} 15. Qd1 {[%clk 0:02:17]}  Nf6 {[%clk 0:02:07]} 16. Qe2 {[%clk 0:02:12]}  Re8 {[%clk 0:02:05]} 17. Rf1 {[%clk 0:02:07]}  Bb7 {[%clk 0:02:05]} 18. Rae1 {[%clk 0:02:02]}  d5 {[%clk 0:02:02]} 19. exd5 {[%clk 0:02:01]}  Nxd5 {[%clk 0:02:03]} 20. f3 {[%clk 0:01:52]}  f5 {[%clk 0:01:58]} 21. Qf2 {[%clk 0:01:48]}  Qe7 {[%clk 0:01:45]} 22. f4 {[%clk 0:01:40]}  exf4 {[%clk 0:01:40]} 23. Bxf4 {[%clk 0:01:40]}  Qf7 {[%clk 0:01:29]} 24. Be5 {[%clk 0:01:37]}  f4 {[%clk 0:01:27]} 25. Ne4 {[%clk 0:01:30]}  Rad8 {[%clk 0:01:10]} 26. Bxf4 {[%clk 0:01:24]}  Rf8 {[%clk 0:00:57]} 27. Be5 {[%clk 0:01:21]}  Qg6 {[%clk 0:00:57]} 28. Qg3 {[%clk 0:01:20]}  Rxf1+ {[%clk 0:00:52]} 29. Rxf1 {[%clk 0:01:18]}  Qxg3 {[%clk 0:00:53]} 30. Bxg3 {[%clk 0:01:17]}  Ba6 {[%clk 0:00:50]} 31. Re1 {[%clk 0:01:01]}  a3 {[%clk 0:00:30]} 32. bxa3 {[%clk 0:00:59]}  Bxc4 {[%clk 0:00:29]} 33. dxc4 {[%clk 0:00:58]}  Ne7 {[%clk 0:00:30]} 34. Bh4 {[%clk 0:00:54]}  g5 {[%clk 0:00:27]} 35. Nxg5 {[%clk 0:00:49]}  Ng6 {[%clk 0:00:18]} 36. Ne6 {[%clk 0:00:47]}  Re8 {[%clk 0:00:18]} 37. Nd8 {[%clk 0:00:31]}  Rf8 {[%clk 0:00:15]} 38. Ne6 {[%clk 0:00:31]}  Re8 {[%clk 0:00:15]} 39. Nd8 {[%clk 0:00:13]}  Rf8 {[%clk 0:00:15]} 40. Nc6 {[%clk 0:00:08]}  Nxh4 {[%clk 0:00:15]} 41. a4 {[%clk 0:00:09]}  Ra8 {[%clk 0:00:15]} 42. Re4 {[%clk 0:00:08]}  Nf5 {[%clk 0:00:13]} 43. Rf4 {[%clk 0:00:08]}  Nd6 {[%clk 0:00:13]} 44. Ne7+ {[%clk 0:00:08]}  Kg7 {[%clk 0:00:13]} 45. Rg4+ {[%clk 0:00:05]}  Kf7 {[%clk 0:00:13]} 46. Nd5 {[%clk 0:00:05]}  Rxa4 {[%clk 0:00:14]} 47. Rf4+ {[%clk 0:00:06]}  Ke6 {[%clk 0:00:13]} 48. Rf6+ {[%clk 0:00:06]}  Ke5 {[%clk 0:00:13]} 49. Rxh6 {[%clk 0:00:07]}  Nxc4 {[%clk 0:00:12]} 50. Ne7 {[%clk 0:00:06]}  Rxa2 {[%clk 0:00:11]} 51. h4 {[%clk 0:00:07]}  Ne3 {[%clk 0:00:10]} 52. Rg6 {[%clk 0:00:07]}  c4 {[%clk 0:00:09]} 53. Kh2 {[%clk 0:00:07]}  Rc2 {[%clk 0:00:08]} 54. h5 {[%clk 0:00:07]}  Rxc3 {[%clk 0:00:08]} 55. h6 {[%clk 0:00:07]}  Nf1+ {[%clk 0:00:08]} 56. Kh1 {[%clk 0:00:06]}  Rc1 {[%clk 0:00:02]} 57. h7 {[%clk 0:00:06]}  Ng3+ {[%clk 0:00:02]} 58. Kh2 {[%clk 0:00:06]}  Rh1+ {[%clk 0:00:03]} 59. Kxg3 {[%clk 0:00:07]}  Rxh7 {[%clk 0:00:04]} 60. Nc6+ {[%clk 0:00:07]}  Ke4 {[%clk 0:00:03]} 61. Rg4+ {[%clk 0:00:06]}  Kd3 {[%clk 0:00:03]} 62. Ne5+ {[%clk 0:00:06]}  Kc3 {[%clk 0:00:02]} 63. Rxc4+ {[%clk 0:00:07]}  Kb3 {[%clk 0:00:03]} 64. Re4 {[%clk 0:00:07]}  Re7 {[%clk 0:00:02]} 65. Kf3 {[%clk 0:00:07]}  c5 {[%clk 0:00:02]} 66. g4 {[%clk 0:00:04]}  c4 {[%clk 0:00:01]} 67. Nxc4 {[%clk 0:00:04]}  Rxe4 {[%clk 0:00:02]} 68. Nd2+ {[%clk 0:00:05]}  Kb4 {[%clk 0:00:02]} 69. Nxe4 {[%clk 0:00:06]}  Bd8 {[%clk 0:00:02]} 70. Kf4 {[%clk 0:00:06]}  Kc4 {[%clk 0:00:03]} 71. Ke5 {[%clk 0:00:06]}  Bh4 {[%clk 0:00:02]} 72. Nd6+ {[%clk 0:00:05]}  Kd3 {[%clk 0:00:03]} 73. Kf5 {[%clk 0:00:05]}  Ke3 {[%clk 0:00:02]} 74. Nf7 {[%clk 0:00:06]}  Kf3 {[%clk 0:00:02]} 75. Ne5+ {[%clk 0:00:06]}  Ke2 {[%clk 0:00:02]} 76. Ng6 {[%clk 0:00:06]}  Bd8 {[%clk 0:00:02]} 77. Nf4+ {[%clk 0:00:06]}  Kf3 {[%clk 0:00:01]} 78. Ne6 {[%clk 0:00:07]}  Be7 {[%clk 0:00:01]} 79. Ng5+ {[%clk 0:00:07]}  Ke3 {[%clk 0:00:01]} 80. Ne4 {[%clk 0:00:07]}  Bd8 {[%clk 0:00:02]} 81. Nf6 {[%clk 0:00:07]} 1-0


[Site "https://www.chess.com"]

[Event "Titled Tuesday Blitz June 21 Early 2022"]
[White "Ferreira, Vitor Hugo Vieira"]
[Black "Tica, Sven"]
[WhiteFideId "2119765"]
[BlackFideId "14526948"]
[WhiteElo "2165"]
[BlackElo "2346"]
[Result "1-0"]
[Round "10"]
[TimeControl "180+1"]
[Date "2022.06.22"]
[WhiteClock "0:01:57"]
[BlackClock "0:00:48"]

1. d4 {[%clk 0:03:00]}  g6 {[%clk 0:01:33]} 2. e4 {[%clk 0:03:00]}  Bg7 {[%clk 0:01:33]} 3. Nc3 {[%clk 0:03:00]}  a6 {[%clk 0:01:34]} 4. h4 {[%clk 0:03:00]}  h5 {[%clk 0:01:34]} 5. Nh3 {[%clk 0:02:59]}  b5 {[%clk 0:01:34]} 6. Ng5 {[%clk 0:02:59]}  Bb7 {[%clk 0:01:35]} 7. Bd3 {[%clk 0:02:58]}  Bxd4 {[%clk 0:01:31]} 8. Qf3 {[%clk 0:02:52]}  Nh6 {[%clk 0:01:31]} 9. Bd2 {[%clk 0:02:46]}  c5 {[%clk 0:01:28]} 10. O-O-O {[%clk 0:02:44]}  Nc6 {[%clk 0:01:27]} 11. Nd5 {[%clk 0:02:43]}  Ne5 {[%clk 0:01:22]} 12. Qg3 {[%clk 0:02:41]}  e6 {[%clk 0:01:17]} 13. Ne3 {[%clk 0:02:40]}  d6 {[%clk 0:01:08]} 14. f4 {[%clk 0:02:36]}  Nxd3+ {[%clk 0:01:07]} 15. cxd3 {[%clk 0:02:36]}  Qe7 {[%clk 0:01:03]} 16. Nc2 {[%clk 0:02:35]}  Bg7 {[%clk 0:01:02]} 17. Rhf1 {[%clk 0:02:30]}  d5 {[%clk 0:01:03]} 18. f5 {[%clk 0:02:30]}  dxe4 {[%clk 0:01:02]} 19. fxe6 {[%clk 0:02:20]}  f5 {[%clk 0:00:59]} 20. dxe4 {[%clk 0:02:18]}  Bxe4 {[%clk 0:01:00]} 21. Nxe4 {[%clk 0:02:17]}  Qxe6 {[%clk 0:00:55]} 22. Nd6+ {[%clk 0:02:15]}  Kf8 {[%clk 0:00:54]} 23. Rde1 {[%clk 0:02:06]}  Qxa2 {[%clk 0:00:54]} 24. Qxg6 {[%clk 0:02:01]}  Kg8 {[%clk 0:00:48]} 25. Bc3 {[%clk 0:01:57]} 1-0


[Site "https://www.chess.com"]